bitfinex/quotes_ETHUSD_20240608
["timestamp","ask_amount","ask_price","bid_price","bid_amount"]
[1717852944441,1.62926414,3680.2,3680.0,1.71558869]
[1717852945903,1.62926414,3680.1,3680.0,1.71558869]
[1717852946328,1.62926414,3680.2,3680.0,1.71558869]
[1717852946537,1.62926414,3680.3,3680.0,1.71558869]
[1717852948202,1.62926414,3680.2,3680.0,1.71558869]
[1717852949025,1.62926414,3680.1,3680.0,1.71558869]
[1717852950922,1.62926414,3680.1,3680.0,0.32273403]
[1717852951124,3.0,3680.1,3680.0,0.32273403]
[1717852951325,2.71742,3680.0,3679.4,7.68]
[1717852951531,1.62836025,3679.7,3679.5,1.94285466]
[1717852952163,1.62836025,3679.7,3679.6,0.32273403]
[1717852952345,1.62836025,3679.7,3679.6,1.71558869]
[1717852953251,1.62836025,3679.8,3679.6,1.71558869]
[1717852953423,1.62836025,3679.8,3679.7,1.39285466]
[1717852954066,3.58732547,3679.9,3679.7,1.71558869]
[1717852954233,1.62849532,3679.8,3679.7,1.71558869]
[1717852955171,4.6891194,3679.8,3679.7,0.32273403]
[1717852955352,2.71762,3679.7,3679.4,2.2]
[1717852955561,2.71776,3679.5,3679.4,2.2]
[1717852955734,5.69741302,3679.5,3679.4,2.2]
[1717852955934,2.71809,3679.1,3678.2,8.19871]
[1717852956179,4.66094476,3679.0,3678.4,4.0]
[1717852956333,3.0,3679.0,3678.4,4.0]
[1717852956546,3.0,3679.0,3678.5,1.39285466]
[1717852959191,2.2673,3678.9,3678.5,1.39285466]
[1717852962175,3.0,3679.0,3678.5,1.39285466]
[1717852963539,3.0,3679.0,3678.8,3.2149]
[1717852963664,3.0,3679.4,3678.9,1.94285466]
[1717852963863,3.0,3679.4,3679.0,0.725]
[1717852964089,3.0,3679.4,3679.1,1.39285466]
[1717852967202,3.0,3679.4,3679.2,0.32269538]
[1717852969312,3.79332674,3679.4,3679.2,0.32269538]
[1717852972408,2.7179,3679.3,3679.2,0.32269538]
[1717852972596,7.9786,3679.3,3678.5,0.725]
[1717852972906,3.0,3679.2,3678.6,1.71555004]
[1717852975013,3.0,3679.2,3678.7,0.725]
[1717852975241,3.0,3679.2,3678.7,2.11785466]
[1717852975451,3.0,3679.2,3678.8,0.32269538]
[1717852978465,3.58758727,3679.2,3678.8,0.32269538]
[1717852978614,5.21589441,3679.2,3678.8,0.32269538]
[1717852979045,3.58758727,3679.2,3678.8,0.32269538]
[1717852979265,5.21589441,3679.2,3678.8,0.32269538]
[1717852980355,1.62830714,3679.1,3678.8,0.32269538]
[1717852981021,3.0,3679.2,3678.8,0.32269538]
[1717852981212,1.62825353,3679.1,3678.8,0.32269538]
[1717852981637,1.62825353,3679.1,3678.7,1.39285466]
[1717852982024,1.62825353,3679.1,3678.8,0.32269538]
[1717852982428,1.62825353,3679.0,3678.8,0.32269538]
[1717852985857,1.62825353,3678.9,3678.8,0.32269538]
[1717852986225,1.62825353,3679.0,3678.8,0.32269538]
[1717852986557,0.64800065,3678.9,3678.8,0.32269538]
[1717852986861,0.64800065,3678.9,3678.2,2.4899]
[1717852986862,2.24343355,3678.9,3678.2,0.725]
[1717852987029,2.71818,3679.0,3678.3,1.94285466]
[1717852987030,1.62825353,3678.8,3678.3,1.94285466]
[1717852987556,6.65204353,3678.8,3678.3,1.39285466]
[1717852987950,1.62825353,3678.6,3678.3,1.39285466]
[1717852988678,1.66107416,3678.6,3678.3,1.39285466]
[1717852988971,1.62825353,3678.4,3677.9,2.2]
[1717852989282,1.62825353,3678.4,3677.9,3.59285466]
[1717852989283,2.3055,3678.3,3677.9,3.59285466]
[1717852989454,3.93375353,3678.3,3677.9,3.59285466]
[1717852990127,0.58759531,3678.4,3677.9,4.31785466]
[1717852990128,2.21584884,3678.4,3677.9,4.31785466]
[1717852990386,2.71852,3678.5,3678.1,0.725]
[1717852990591,2.71852,3678.5,3678.1,2.11785466]
[1717852991018,4.34677353,3678.5,3678.1,2.11785466]
[1717852991506,2.71852,3678.5,3678.1,2.11785466]
[1717852992307,2.71852,3678.5,3678.2,1.39285466]
[1717852996340,4.34677353,3678.5,3678.2,1.39285466]
[1717852996560,4.34677353,3678.5,3678.0,0.55]
[1717852996763,4.34677353,3678.5,3678.1,1.39285466]
[1717852997257,4.34677353,3678.5,3678.2,0.32269538]
[1717852998932,1.62825353,3678.4,3678.2,0.32269538]
[1717852999137,4.34677353,3678.5,3678.2,0.32269538]
[1717852999339,1.62825353,3678.4,3678.2,0.32269538]
[1717853000163,4.34677353,3678.5,3678.2,0.32269538]
[1717853001364,2.71864,3678.3,3678.2,0.32269538]
[1717853001772,2.71864,3678.3,3677.9,2.2]
[1717853001975,2.71864,3678.3,3678.2,0.32269538]
[1717853002291,2.71864,3678.3,3677.6,5.48]
[1717853002292,2.71885,3678.1,3677.6,5.48]
[1717853002579,2.71894,3677.9,3677.7,1.39285466]
[1717853008578,2.71894,3677.9,3677.8,0.32269538]
[1717853008871,2.71894,3677.9,3677.7,1.39285466]
[1717853009076,2.71894,3677.9,3677.8,0.32269538]
[1717853009456,2.71894,3677.9,3677.7,1.39285466]
[1717853009646,2.71894,3677.9,3677.8,1.04769538]
[1717853010168,2.71894,3677.9,3677.8,0.32269538]
[1717853010556,2.71894,3677.9,3677.7,2.11785466]
[1717853010749,2.71894,3677.9,3677.8,0.32269538]
[1717853011148,2.71894,3677.9,3677.7,2.11785466]
[1717853011383,2.71894,3677.9,3677.8,0.32269538]
[1717853011756,2.71894,3677.9,3677.7,1.39285466]
[1717853011970,2.71894,3677.9,3677.8,0.32269538]
[1717853012283,2.71894,3677.9,3677.7,1.39285466]
[1717853012588,2.71894,3677.9,3677.8,0.32269538]
[1717853013254,2.71894,3677.9,3677.7,1.39285466]
[1717853013783,2.71894,3677.9,3677.8,0.32269538]
[1717853014189,2.71894,3677.9,3677.7,1.39285466]
[1717853014492,2.71894,3677.9,3677.8,0.32269538]
[1717853014981,2.71894,3677.9,3677.7,1.39285466]
[1717853015187,2.71894,3677.9,3677.8,0.32269538]
[1717853015545,2.71894,3677.9,3677.7,1.39285466]
[1717853015986,2.71894,3677.9,3677.8,0.32269538]
[1717853016282,2.71894,3677.9,3677.7,1.39285466]
[1717853016485,2.71894,3677.9,3677.8,0.32269538]
[1717853016992,2.71894,3677.9,3677.7,1.39285466]
[1717853017155,2.71894,3677.9,3677.8,0.32269538]
[1717853017354,2.71894,3677.9,3677.7,1.39285466]
[1717853017580,2.71894,3677.9,3677.8,0.32269538]
[1717853017791,5.71894,3677.9,3677.7,1.39285466]
[1717853017983,4.93423692,3677.9,3677.7,1.39285466]
[1717853018171,4.10010322,3677.9,3677.8,0.32269538]
[1717853018505,2.7196,3677.0,3676.9,0.006]
[1717853018998,5.7196,3677.0,3676.9,0.32269538]
[1717853020783,6.73915533,3677.0,3676.9,0.32269538]
[1717853020997,7.32709156,3677.0,3676.9,0.32269538]
[1717853021358,8.05209156,3677.0,3676.9,0.32269538]
[1717853021575,10.31609156,3677.0,3676.8,0.90297072]
[1717853021779,3.58793623,3676.9,3676.8,0.90297072]
[1717853022000,4.91954539,3676.9,3676.8,0.90297072]
[1717853024230,3.0,3676.9,3676.8,0.90297072]
[1717853024579,2.7196,3677.0,3676.8,0.90297072]
[1717853024882,4.98329,3677.5,3676.8,3.02082538]
[1717853025198,2.71929,3677.5,3677.0,0.725]
[1717853025406,2.264,3678.0,3677.4,0.725]
[1717853025407,2.21389125,3677.9,3677.4,0.725]
[1717853025612,2.71892,3678.0,3677.4,4.58535466]
[1717853025929,2.71892,3678.0,3677.5,2.26554888]
[1717853026954,1.62603433,3678.4,3677.5,2.26554888]
[1717853027100,0.66085843,3678.4,3677.5,2.26554888]
[1717853027425,2.71855,3678.5,3677.5,2.26554888]
[1717853027627,1.62603433,3678.7,3677.5,2.26554888]
[1717853027909,1.62603433,3678.8,3677.6,2.71912]
[1717853028067,4.34420433,3679.0,3677.7,1.94285466]
[1717853028264,0.43442043,3678.9,3677.7,1.94285466]
[1717853028417,2.71817,3679.0,3677.7,1.94285466]
[1717853028418,2.71817,3679.0,3677.8,3.04169422]
[1717853028618,2.71817,3679.0,3677.9,1.94285466]
[1717853029019,2.71817,3679.0,3678.0,0.32269422]
[1717853029326,2.71817,3679.0,3678.1,1.94285466]
[1717853029736,3.0,3678.9,3678.1,1.94285466]
[1717853029953,3.0,3678.9,3678.2,0.32269422]
[1717853030153,3.0,3678.9,3678.3,1.39285466]
[1717853030327,1.62603433,3679.4,3678.4,0.55]
[1717853030328,4.62603433,3679.4,3678.4,0.55]
[1717853030534,0.43438143,3679.3,3678.5,1.39285466]
[1717853030744,0.43438143,3679.3,3678.5,1.71554888]
[1717853031056,2.71818,3679.0,3678.5,0.32269422]
[1717853031359,3.797738,3678.9,3677.6,5.48]
[1717853031662,2.71829,3678.8,3677.7,1.71554888]
[1717853031842,3.0,3678.7,3677.7,1.71554888]
[1717853032417,3.0,3678.7,3677.8,0.55]
[1717853032624,2.7185,3678.5,3677.6,5.48]
[1717853032825,3.03282063,3678.4,3677.7,1.71554888]
[1717853033129,3.03282063,3678.4,3677.7,0.32269422]
[1717853033545,3.03282063,3678.4,3677.1,5.48]
[1717853033739,3.0,3678.4,3677.8,0.32269422]
[1717853034037,0.79322731,3678.3,3677.2,1.39285466]
[1717853034354,0.03282063,3678.2,3677.3,0.32269422]
[1717853034550,0.03282063,3678.2,3677.4,1.94285466]
[1717853035156,0.68727542,3678.2,3677.5,0.32269422]
[1717853035458,0.68727542,3678.2,3677.6,1.39285466]
[1717853035983,0.65445479,3678.2,3677.7,0.32269422]
[1717853036190,0.03282063,3678.1,3677.7,0.32269422]
[1717853036978,2.79974817,3678.1,3677.7,0.32269422]
[1717853037300,3.0,3678.0,3677.0,5.14068]
[1717853037594,0.03282063,3677.9,3677.8,0.32269422]
[1717853037793,3.0,3678.0,3677.1,1.94285466]
[1717853038267,0.03282063,3677.9,3677.2,0.32269422]
[1717853038571,0.03282063,3677.9,3677.3,1.39285466]
[1717853039068,3.0,3678.0,3677.4,0.32269422]
[1717853040852,0.03282063,3677.9,3677.4,0.32269422]
[1717853041667,0.64485845,3677.9,3677.4,0.32269422]
[1717853041865,0.64485845,3677.9,3677.1,0.55]
[1717853042070,3.0,3678.0,3677.2,0.32269422]
[1717853042265,3.0,3678.0,3677.3,1.39285466]
[1717853042744,3.0,3678.0,3677.4,0.32269422]
[1717853043455,2.71897,3677.9,3677.4,0.32269422]
[1717853043633,3.0,3677.8,3676.8,0.90297072]
[1717853043836,3.0,3677.8,3676.9,2.26554888]
[1717853044830,0.03282063,3677.7,3676.9,1.71554888]
[1717853045035,0.03282063,3677.7,3677.0,0.55]
[1717853045259,2.71921,3677.6,3676.8,0.90297072]
[1717853045457,3.571921,3677.5,3676.9,0.32269422]
[1717853045771,5.75213063,3677.4,3676.9,0.32269422]
[1717853045929,2.75213063,3677.4,3676.9,0.32269422]
[1717853046136,3.0,3677.3,3676.9,0.32269422]
[1717853046333,0.57521306,3677.2,3676.9,0.32269422]
[1717853046559,2.71947,3677.2,3676.9,0.32269422]
[1717853047135,5.50662063,3677.1,3676.9,0.32269422]
[1717853048953,2.7196,3677.0,3676.9,0.32269422]
[1717853049134,5.7196,3677.0,3676.9,0.32269422]
[1717853049337,5.7196,3677.0,3676.8,0.90297072]
[1717853049572,3.81934,3676.9,3676.8,0.90297072]
[1717853051266,3.0,3676.9,3676.8,0.90297072]
[1717853053057,4.62603433,3676.9,3676.8,0.90297072]
[1717853053452,3.0,3676.9,3676.8,0.90297072]
[1717853054341,7.3790001,3676.9,3676.8,0.90297072]
[1717853054746,11.24565476,3676.9,3676.8,0.90297072]
[1717853054975,12.6867233,3676.9,3676.8,0.90297072]
[1717853055575,7.50292464,3676.9,3676.8,0.90297072]
[1717853055882,9.1289726,3676.9,3676.8,0.90297072]
[1717853056094,6.91486854,3676.9,3676.8,0.90297072]
[1717853056649,4.44106854,3676.9,3676.8,0.90297072]
[1717853065449,5.02908716,3676.9,3676.8,0.90297072]
[1717853066215,4.44106854,3676.9,3676.8,0.90297072]
[1717853066570,5.02908253,3676.9,3676.8,0.90297072]
[1717853067006,6.65522201,3676.9,3676.8,0.90297072]
[1717853067807,5.02908253,3676.9,3676.8,0.90297072]
[1717853068499,12.36396019,3676.9,3676.8,0.90297072]
[1717853070015,13.09096019,3676.9,3676.8,0.90297072]
[1717853071077,13.09096019,3676.9,3676.8,0.87780944]
[1717853071315,13.09096019,3676.9,3676.8,0.61099124]
[1717853073944,15.95196019,3676.9,3676.8,0.61099124]
[1717853074788,18.31166019,3676.9,3676.8,0.61099124]
[1717853074933,18.31166019,3676.9,3676.0,0.69980342]
[1717853075287,3.44727,3676.1,3676.0,0.69980342]
[1717853075762,11.28913865,3676.1,3676.0,0.69980342]
[1717853075975,13.64883865,3676.1,3676.0,0.4397244]
[1717853076258,34.45097565,3676.1,3676.0,0.4397244]
[1717853076465,2.72064,3675.6,3675.5,0.1256014]
[1717853076678,8.80734,3675.6,3675.5,0.1256014]
[1717853076832,9.39535399,3675.6,3675.5,0.1256014]
[1717853077312,9.39535399,3675.6,3674.5,0.1089]
[1717853077313,2.72127,3674.8,3674.5,0.1089]
[1717853077516,2.72138,3674.6,3674.5,0.1089]
[1717853077762,2.72138,3674.6,3674.5,0.0589]
[1717853078126,7.34632215,3674.6,3674.5,0.0589]
[1717853078315,5.72138,3674.6,3674.5,0.0589]
[1717853078852,7.34632215,3674.6,3674.5,0.0589]
[1717853079015,6.30972528,3674.6,3674.5,0.0589]
[1717853079218,5.72138,3674.6,3674.5,0.0589]
[1717853082029,6.45601222,3674.6,3674.5,0.0589]
[1717853082452,8.66933022,3674.6,3674.5,0.0589]
[1717853082654,6.30975585,3674.6,3674.5,0.0589]
[1717853083087,5.72138,3674.6,3674.5,0.0589]
[1717853083384,2.72138,3674.6,3674.5,0.0589]
[1717853083681,2.72138,3674.6,3674.5,0.35734555]
[1717853083837,2.72105,3675.1,3674.5,0.35734555]
[1717853084370,2.72105,3675.1,3674.5,0.0589]
[1717853085176,3.0,3675.0,3674.5,0.0589]
[1717853087481,3.0,3675.0,3674.6,1.39285466]
[1717853087687,3.0,3675.6,3674.6,1.69130021]
[1717853088025,2.72078,3675.5,3674.6,1.69130021]
[1717853088313,3.0,3675.4,3674.6,1.69130021]
[1717853091400,3.0,3675.4,3674.7,2.271]
[1717853091551,3.0,3675.4,3674.7,3.66385466]
[1717853091759,3.0,3675.4,3674.8,0.29844555]
[1717853092272,3.0,3675.4,3674.8,1.69130021]
[1717853093476,3.0,3675.4,3675.0,2.271]
[1717853093789,2.7204,3676.0,3675.0,2.271]
[1717853093790,3.0,3675.9,3675.1,1.94285466]
[1717853093986,3.0,3675.9,3675.1,2.24130021]
[1717853094206,2.72052,3675.8,3675.1,0.29844555]
[1717853094484,2.72064,3675.6,3675.1,0.29844555]
[1717853094784,3.0,3675.5,3675.1,0.29844555]
[1717853095347,2.72079,3675.4,3675.1,0.29844555]
[1717853095670,3.0,3675.3,3675.1,0.29844555]
[1717853096089,3.29246,3675.9,3675.1,0.29844555]
[1717853096090,2.72065,3675.6,3675.1,0.29844555]
[1717853096249,3.0,3675.5,3675.1,0.29844555]
[1717853096645,2.72079,3675.4,3675.1,0.29844555]
[1717853096844,2.72094,3675.2,3675.1,0.29844555]
[1717853097045,5.72094,3675.2,3674.6,2.271]
[1717853097244,5.72094,3675.2,3675.1,0.29844555]
[1717853097245,7.34632561,3675.2,3675.1,0.29844555]
[1717853097540,8.13977639,3675.2,3675.1,0.28849736]
[1717853097745,8.72795858,3675.2,3674.6,2.271]
[1717853097990,2.72109,3675.0,3674.6,2.271]
[1717853098357,3.0,3674.9,3674.6,2.271]
[1717853101251,3.0,3674.9,3674.7,1.39285466]
[1717853101557,3.0,3675.4,3674.7,1.39285466]
[1717853102148,3.45550456,3675.3,3674.8,0.28849736]
[1717853102353,3.0,3675.2,3674.6,2.271]
[1717853102589,3.0,3675.2,3674.9,0.28849736]
[1717853102745,3.0,3675.2,3674.7,1.39285466]
[1717853102953,3.0,3675.2,3675.0,0.28849736]
[1717853103218,1.62538561,3675.6,3675.1,3.86915466]
[1717853103480,3.58822146,3675.7,3675.1,4.15765202]
[1717853103481,5.21360707,3675.7,3675.1,4.15765202]
[1717853103985,3.58822146,3675.7,3675.1,4.15765202]
[1717853104193,0.82062121,3675.6,3675.1,4.15765202]
[1717853104396,2.72074,3675.5,3675.1,2.76479736]
[1717853104686,3.0,3675.4,3675.1,2.76479736]
[1717853105874,3.0,3675.4,3675.1,0.28849736]
[1717853106155,4.34627561,3675.3,3674.7,2.4763]
[1717853106354,3.0,3675.2,3674.7,3.86915466]
[1717853107193,2.75387063,3675.1,3674.5,0.0589]
[1717853107400,2.72119,3674.9,3674.5,0.0589]
[1717853107565,3.0,3674.8,3674.5,0.0589]
[1717853108962,4.6256062,3675.3,3674.6,1.39285466]
[1717853109165,3.0,3675.3,3674.7,2.4763]
[1717853109483,3.0,3675.3,3674.8,1.39285466]
[1717853109696,1.6256062,3675.7,3674.8,1.39285466]
[1717853109893,1.6256062,3675.7,3674.9,2.4763]
[1717853110100,1.6256062,3675.8,3675.0,1.39285466]
[1717853110999,4.3460862,3675.9,3675.0,1.39285466]
[1717853111195,3.0,3675.8,3675.0,1.39285466]
[1717853112104,4.94043663,3675.8,3675.0,1.39285466]
[1717853112771,5.21376387,3675.8,3675.0,1.39285466]
[1717853112973,5.21376387,3675.8,3675.0,4.11387466]
[1717853112974,3.0,3675.8,3675.0,4.11387466]
[1717853113169,1.62606522,3676.0,3675.1,3.0263]
[1717853113371,1.62606522,3676.0,3675.2,2.72092]
[1717853113560,3.58811436,3676.3,3675.4,2.4763]
[1717853113561,1.62606522,3676.2,3675.4,2.4763]
[1717853113759,1.62606522,3676.2,3675.5,1.39285466]
[1717853114211,1.62627058,3676.2,3675.5,1.39285466]
[1717853114708,1.62627058,3676.3,3675.5,1.39285466]
[1717853114998,1.62627058,3676.2,3675.5,1.39285466]
[1717853115610,1.62627058,3676.2,3674.9,1.747]
[1717853115611,1.62627058,3675.8,3675.0,2.4763]
[1717853115764,3.59563906,3676.2,3674.6,2.4763]
[1717853115765,1.62627058,3675.4,3674.6,2.4763]
[1717853115966,1.62627058,3675.4,3673.5,1.747]
[1717853115967,2.72101,3675.2,3674.2,2.4763]
[1717853116166,2.72112,3675.0,3674.2,2.4763]
[1717853116811,2.72125,3674.8,3674.2,2.4763]
[1717853117309,3.0,3674.7,3674.2,2.4763]
[1717853117466,2.72138,3674.6,3674.2,2.4763]
[1717853118777,2.72138,3674.6,3673.7,2.4763]
[1717853123302,3.293518,3674.6,3673.4,4.59006121]
[1717853123497,6.293518,3674.6,3673.4,4.59006121]
[1717853123836,6.88200297,3674.6,3673.4,4.59006121]
[1717853126299,6.30986497,3674.6,3673.4,4.59006121]
[1717853127192,5.72138,3674.6,3673.4,4.59006121]
[1717853130806,5.72138,3674.6,3673.4,2.25536121]
[1717853131006,5.72138,3674.6,3674.2,2.3347]
[1717853131233,5.72138,3674.6,3674.5,0.30152932]
[1717853135624,0.58849594,3675.0,3674.5,1.69438398]
[1717853135824,2.861,3675.8,3674.5,1.69438398]
[1717853135825,0.58849126,3676.1,3675.0,2.3347]
[1717853136027,2.7203,3676.1,3675.1,1.94285466]
[1717853136514,2.7203,3676.1,3675.2,0.23454167]
[1717853136857,2.7203,3676.1,3675.3,1.94285466]
[1717853137009,2.71988,3676.7,3675.3,1.94285466]
[1717853137942,3.0,3676.6,3675.3,1.94285466]
[1717853139458,2.71988,3676.7,3675.3,1.94285466]
[1717853140430,2.7202,3676.2,3675.3,1.94285466]
[1717853143049,2.72035,3676.0,3675.0,2.3347]
[1717853143233,2.72035,3676.0,3675.1,1.39285466]
[1717853147444,2.72035,3676.0,3675.2,0.23454167]
[1717853147753,2.72035,3676.0,3675.2,1.62739633]
[1717853149663,2.7205,3675.8,3675.2,1.62739633]
[1717853149967,2.72064,3675.6,3675.2,1.62739633]
[1717853150265,3.0,3675.5,3675.2,0.23454167]
[1717853150474,3.0,3675.5,3674.5,2.78034]
[1717853150694,6.268364,3675.5,3674.1,2.2]
[1717853150833,6.268364,3675.5,3674.6,0.23454167]
[1717853150834,2.72102,3675.1,3674.6,0.23454167]
[1717853151032,2.72117,3674.9,3674.2,2.453]
[1717853151237,3.0,3675.0,3674.7,0.23454167]
[1717853151435,3.0,3675.3,3674.8,1.39285466]
[1717853151635,3.0,3675.3,3674.8,1.62739633]
[1717853151945,2.72097,3675.2,3674.8,1.62739633]
[1717853152153,3.0,3675.1,3674.8,1.62739633]
[1717853152576,3.0,3675.1,3674.8,1.39285466]
[1717853152940,3.0,3675.1,3674.9,0.23454167]
[1717853153135,2.72097,3675.2,3675.0,1.39285466]
[1717853153679,2.72061,3675.7,3675.1,0.23454167]
[1717853154039,2.72061,3675.7,3675.0,1.39285466]
[1717853155176,3.0,3675.6,3675.0,1.39285466]
[1717853155537,2.72072,3675.5,3675.0,1.39285466]
[1717853155914,3.0,3675.4,3675.1,0.23454167]
[1717853157682,3.0,3675.4,3675.2,1.39285466]
[1717853158043,3.0,3675.4,3675.3,0.23454167]
[1717853158272,3.0,3675.4,3675.2,1.39285466]
[1717853158577,3.0,3675.4,3675.3,0.23454167]
[1717853158779,3.0,3675.4,3675.2,1.39285466]
[1717853159209,3.0,3676.0,3675.3,2.68754167]
[1717853159490,3.0,3676.0,3675.4,1.39285466]
[1717853159709,2.72048,3675.9,3675.4,1.39285466]
[1717853159910,3.0,3675.8,3675.4,1.39285466]
[1717853160095,3.0,3675.8,3675.5,0.23454167]
[1717853160292,2.72057,3675.7,3675.5,0.23454167]
[1717853160465,3.0,3675.6,3675.5,0.23454167]
[1717853160661,2.72087,3675.3,3674.5,5.48]
[1717853160913,0.04698622,3676.7,3675.2,1.39285466]
[1717853161090,2.2784,3677.5,3675.3,7.06478466]
[1717853161091,2.71993,3676.6,3675.3,7.06478466]
[1717853162303,2.71993,3676.6,3675.4,0.23454167]
[1717853162517,2.71993,3676.6,3675.5,1.94285466]
[1717853162669,2.71993,3676.6,3675.6,2.4011]
[1717853162864,2.71993,3676.6,3675.7,1.39285466]
[1717853163115,3.0,3676.5,3675.7,1.62739633]
[1717853172648,2.72008,3676.4,3675.7,1.62739633]
[1717853172943,3.0,3676.3,3675.7,1.62739633]
[1717853173241,2.75304063,3676.2,3675.7,1.62739633]
[1717853173452,2.72022,3676.2,3675.7,1.62739633]
[1717853173668,2.72035,3676.0,3675.7,1.62739633]
[1717853173801,3.0,3675.9,3675.7,1.62739633]
[1717853174771,3.0,3676.4,3675.7,1.62739633]
[1717853174907,3.272003,3676.4,3675.7,1.62739633]
[1717853175253,2.72014,3676.3,3675.7,1.39285466]
[1717853175449,3.0,3676.2,3675.7,1.39285466]
[1717853175660,3.0,3676.2,3675.8,0.23454167]
[1717853175875,3.0,3676.2,3675.8,1.39285466]
[1717853176371,2.72027,3676.1,3675.9,0.23454167]
[1717853176659,3.0,3676.0,3675.8,1.39285466]
[1717853177163,3.0,3676.0,3675.9,0.23454167]
[1717853177535,3.0,3676.0,3675.8,1.39285466]
[1717853177863,3.0,3676.0,3675.9,0.23454167]
[1717853178008,3.0,3676.0,3675.8,1.39285466]
[1717853178413,3.0,3676.0,3675.9,0.23454167]
[1717853178697,3.0,3676.0,3675.1,2.4011]
[1717853178898,3.0,3676.0,3675.9,0.23454167]
[1717853179199,3.0,3676.0,3675.2,1.94285466]
[1717853179411,3.0,3676.0,3675.3,0.23454167]
[1717853179412,2.72042,3675.9,3675.3,0.23454167]
[1717853179554,3.0,3675.8,3675.4,1.39285466]
[1717853180117,3.0,3675.8,3675.5,0.23454167]
[1717853180263,3.0,3675.8,3675.6,1.39285466]
[1717853180466,2.72087,3675.3,3674.9,5.48]
[1717853180790,2.72087,3675.3,3674.4,4.6822]
[1717853180791,3.0,3675.2,3675.1,2.4822]
[1717853181075,3.0,3675.7,3675.1,3.87505466]
[1717853181274,3.0,3675.7,3675.2,1.39285466]
[1717853183871,2.72068,3675.6,3674.7,2.4822]
[1717853184074,3.0,3675.5,3674.8,1.39285466]
[1717853185569,3.0,3675.5,3674.9,0.55]
[1717853185763,3.0,3675.5,3675.0,1.39285466]
[1717853187569,2.72079,3675.4,3674.7,2.4822]
[1717853187774,2.72079,3675.4,3674.8,1.39285466]
[1717853188044,3.0,3675.3,3674.8,1.39285466]
[1717853188688,2.72097,3675.2,3674.8,1.39285466]
[1717853189020,3.0,3675.1,3674.8,1.39285466]
[1717853192299,3.0,3675.1,3674.9,0.23454167]
[1717853192912,2.72108,3675.0,3674.9,0.23454167]
[1717853193117,5.72108,3675.0,3674.4,2.2]
[1717853193414,3.0,3674.9,3674.5,1.39285466]
[1717853193910,2.72125,3674.8,3674.5,1.39285466]
[1717853194108,3.0,3674.7,3674.5,1.39285466]
[1717853196687,3.0,3674.7,3673.8,2.4822]
[1717853196903,3.0,3674.7,3673.9,1.39285466]
[1717853197103,3.0,3674.7,3673.9,1.94285466]
[1717853199913,3.0,3674.7,3673.9,1.39285466]
[1717853199914,2.7214,3674.6,3673.9,1.39285466]
[1717853201421,3.0,3674.7,3674.0,0.55]
[1717853201607,3.0,3674.9,3674.1,1.39285466]
[1717853202726,3.0,3674.9,3674.2,2.3628]
[1717853203037,3.0,3674.9,3674.3,1.39285466]
[1717853205212,3.0,3675.3,3674.4,0.55]
[1717853205517,3.0,3675.3,3674.5,1.39285466]
[1717853207442,3.0,3675.3,3674.6,0.23454167]
[1717853207739,3.0,3675.3,3674.7,1.39285466]
[1717853208308,3.0,3675.3,3674.8,0.23454167]
[1717853208542,3.0,3675.3,3674.8,1.62739633]
[1717853216620,2.72096,3675.2,3674.8,1.62739633]
[1717853216942,3.0,3675.1,3674.8,1.62739633]
[1717853219317,3.0,3675.1,3674.9,3.0908]
[1717853219519,3.0,3675.1,3674.9,2.3628]
[1717853219744,3.0,3675.1,3675.0,0.23454167]
[1717853223239,3.0,3675.1,3674.8,1.39285466]
[1717853223630,3.0,3675.1,3674.9,0.23454167]
[1717853224178,3.0,3675.1,3675.0,1.39285466]
[1717853224390,2.72065,3675.6,3675.0,2.12085466]
[1717853224391,3.0,3675.5,3675.0,2.12085466]
[1717853224988,3.0,3675.5,3675.1,0.23454167]
[1717853225152,3.0,3675.5,3675.2,1.39285466]
[1717853225349,3.0,3675.5,3675.2,2.12085466]
[1717853225678,3.0,3675.5,3675.2,1.39285466]
[1717853225883,3.0,3675.5,3675.3,0.23454167]
[1717853226190,3.0,3675.5,3675.2,1.39285466]
[1717853226339,3.0,3675.5,3675.4,0.23454167]
[1717853226533,3.0,3675.5,3675.2,1.39285466]
[1717853226782,3.0,3675.5,3675.4,0.23454167]
[1717853226979,3.0,3675.5,3675.2,1.39285466]
[1717853227187,3.0,3675.5,3675.4,0.23454167]
[1717853227415,3.0,3675.5,3675.2,1.39285466]
[1717853227620,3.0,3675.5,3675.4,0.23454167]
[1717853227757,3.0,3675.5,3675.2,1.39285466]
[1717853227951,3.0,3675.5,3675.4,0.23454167]
[1717853228156,3.0,3675.5,3675.2,1.39285466]
[1717853228815,3.0,3675.5,3675.3,0.23454167]
[1717853229175,3.0,3675.5,3675.2,1.39285466]
[1717853229803,3.0,3675.5,3675.3,0.23454167]
[1717853230193,3.0,3675.5,3675.2,1.39285466]
[1717853230358,3.0,3675.5,3675.4,0.23454167]
[1717853230557,3.0,3675.5,3675.2,1.39285466]
[1717853230775,3.572065,3675.5,3675.4,0.23454167]
[1717853230985,2.72082,3675.4,3674.8,0.728]
[1717853231223,3.0,3675.3,3674.8,2.12085466]
[1717853231396,3.0,3675.3,3674.9,0.23454167]
[1717853232459,2.72094,3675.2,3674.9,0.23454167]
[1717853232774,3.0,3675.1,3674.9,0.23454167]
[1717853233087,3.0,3675.1,3674.6,0.728]
[1717853233275,3.0,3675.1,3675.0,0.23454167]
[1717853233883,3.0,3675.1,3674.8,0.728]
[1717853234599,3.0,3675.1,3674.9,0.23454167]
[1717853237214,3.0,3675.1,3675.0,1.39285466]
[1717853237428,3.0,3675.6,3675.0,1.39285466]
[1717853237926,3.0,3675.6,3675.1,0.23454167]
[1717853238832,3.0,3675.6,3675.1,1.62739633]
[1717853239597,3.533333,3675.5,3675.1,0.23454167]
[1717853239817,2.4887,3675.2,3675.1,0.23454167]
[1717853239984,2.72107,3675.1,3674.3,2.35]
[1717853240197,2.72107,3675.1,3674.4,1.39285466]
[1717853240396,3.0,3675.0,3674.4,1.62410765]